fUSD/lending_fUSD_20250607
["ID","MTS","AMOUNT","RATE_DAILY","PERIOD"]
[364916705,1749297784005,-151.0,0.00018808,2]
[364916706,1749297784029,-151.0,0.00018808,2]
[364916707,1749297784053,-151.0,0.00018808,2]
[364916708,1749297784077,-151.0,0.00018808,2]
[364916709,1749297784100,-1022.65582116,0.00018815,2]
[364916710,1749297784124,-179.340194,0.00018821,2]
[364916711,1749297784147,-151.0,0.00018821,2]
[364916712,1749297784178,-614.953737,0.00018821,2]
[364916713,1749297784203,-151.0,0.00018821,2]
[364916714,1749297784226,-614.953737,0.00018821,2]
[364916715,1749297784251,-261.759839,0.00018821,2]
[364916716,1749297784279,-261.759839,0.00018821,2]
[364916717,1749297784304,-151.0,0.00018821,2]
[364916718,1749297784329,-151.0,0.00018821,2]
[364916719,1749297784354,-151.0,0.00018821,2]
[364916720,1749297784379,-179.340194,0.00018843,2]
[364916721,1749297784405,-151.0,0.00018843,2]
[364916722,1749297784431,-614.953737,0.00018843,2]
[364916723,1749297784455,-151.0,0.00018843,2]
[364916724,1749297784480,-614.953737,0.00018843,2]
[364916725,1749297784506,-261.759839,0.00018843,2]
[364916726,1749297784529,-261.759839,0.00018843,2]
[364916727,1749297784552,-151.0,0.00018843,2]
[364916728,1749297784575,-151.0,0.00018843,2]
[364916729,1749297784599,-151.0,0.00018843,2]
[364916730,1749297784625,-179.340194,0.00018871,2]
[364916731,1749297784649,-151.0,0.00018871,2]
[364916732,1749297784679,-614.953737,0.00018871,2]
[364916733,1749297784703,-151.0,0.00018871,2]
[364916734,1749297784727,-614.953737,0.00018871,2]
[364916735,1749297784752,-261.759839,0.00018871,2]
[364916736,1749297784776,-261.759839,0.00018871,2]
[364916737,1749297784800,-151.0,0.00018871,2]
[364916738,1749297784825,-220.540728,0.00018871,2]
[364916739,1749297784849,-151.0,0.00018871,2]
[364916740,1749297784878,-179.340194,0.000189,2]
[364916741,1749297784903,-1022.65582116,0.000189,2]
[364916742,1749297784928,-153.52466793,0.000189,2]
[364916743,1749297784953,-614.953737,0.000189,2]
[364916744,1749297784977,-151.0,0.000189,2]
[364916745,1749297785002,-614.953737,0.000189,2]
[364916746,1749297785027,-261.759839,0.000189,2]
[364916747,1749297785051,-261.759839,0.000189,2]
[364916748,1749297785075,-151.0,0.000189,2]
[364916749,1749297785099,-246.434752,0.000189,2]
[364916750,1749297785123,-228.560935,0.00018925,2]
[364916751,1749297785148,-151.0,0.00018925,2]
[364916752,1749297785171,-179.340194,0.00018929,2]
[364916753,1749297785196,-614.953737,0.00018929,2]
[364916754,1749297785220,-614.953737,0.00018929,2]
[364916755,1749297785245,-261.759839,0.00018929,2]
[364916756,1749297785272,-261.759839,0.00018929,2]
[364916757,1749297785295,-151.0,0.00018929,2]
[364916758,1749297785321,-150.0,0.0001895,2]
[364916759,1749297785346,-614.953737,0.00018973,2]
[364916760,1749297785370,-614.953737,0.00018973,2]
[364916761,1749297785395,-261.759839,0.00018973,2]
[364916762,1749297785420,-261.759839,0.00018973,2]
[364916763,1749297785444,-7462.28717331,0.00019,5]
[364916764,1749297785572,-850.0,0.00018788,2]
[364916765,1749297785597,-500.0,0.00018789,2]
[364916766,1749297785622,-500.0,0.00018789,2]
[364916767,1749297785647,-53150.0,0.00019,5]
[364916768,1749297787176,-500.0,0.00018789,2]
[364916769,1749297787200,-54500.0,0.00019,5]
[364916770,1749297810916,-161.64441027,0.00013699,2]
[364916772,1749297815680,-193.03558973,0.00013699,2]
[364916793,1749298231515,-250.0,0.00018409,2]
[364916794,1749298231526,-595.72788746,0.00018482,2]
[364916795,1749298231567,-2205.10847254,0.00018482,2]
[364916796,1749298231578,-160.74,0.00018553,2]
[364916797,1749298231587,-250.0,0.00018582,2]
[364916798,1749298231597,-678.69,0.00018582,2]
[364916799,1749298231608,-1000.0,0.000187,2]
[364916800,1749298231617,-1000.0,0.00018711,2]
[364916801,1749298231627,-1200.0,0.00018742,2]
[364916802,1749298231636,-5000.0,0.00018743,2]
[364916803,1749298231646,-300.0,0.00018807,2]
[364916804,1749298231655,-382.0,0.00018807,2]
[364916805,1749298231665,-151.0,0.00018808,2]
[364916806,1749298231674,-151.0,0.00018808,2]
[364916807,1749298231684,-177.218348,0.00018808,2]
[364916808,1749298231694,-172.578436,0.00018808,2]
[364916809,1749298231704,-151.0,0.00018808,2]
[364916810,1749298231713,-172.578436,0.00018808,2]
[364916811,1749298231723,-224.860027,0.00018808,2]
[364916812,1749298231732,-151.0,0.00018808,2]
[364916813,1749298231741,-224.860027,0.00018808,2]
[364916814,1749298231751,-151.0,0.00018808,2]
[364916815,1749298231760,-151.0,0.00018808,2]
[364916816,1749298231769,-151.736635,0.00018808,2]
[364916817,1749298231779,-151.0,0.00018808,2]
[364916818,1749298231789,-151.0,0.00018808,2]
[364916819,1749298231798,-151.0,0.00018808,2]
[364916820,1749298231808,-193.001573,0.00018808,2]
[364916821,1749298231817,-193.001573,0.00018808,2]
[364916822,1749298231827,-151.0,0.00018821,2]
[364916823,1749298231838,-151.0,0.00018821,2]
[364916824,1749298231849,-96.59984261,0.00018821,2]
[364916825,1749298231862,-80.61850539,0.00018821,2]
[364916826,1749298231872,-172.578436,0.00018821,2]
[364916827,1749298231882,-151.0,0.00018821,2]
[364916829,1749298231892,-172.578436,0.00018821,2]
[364916830,1749298231901,-224.860027,0.00018821,2]
[364916832,1749298231911,-151.0,0.00018821,2]
[364916833,1749298231921,-152.46359561,0.00018821,2]
[364916835,1749298231941,-72.39643139,0.00018821,2]
[364916836,1749298231951,-151.0,0.00018821,2]
[364916837,1749298231962,-151.0,0.00018821,2]
[364916858,1749298232193,-151.0,0.00018821,2]
[364916860,1749298232204,-151.0,0.00018821,2]
[364916862,1749298232213,-124.09605713,0.00018821,2]
[364917346,1749298237488,-26.90394287,0.00018821,2]
[364917348,1749298237500,-193.001573,0.00018821,2]
[364917350,1749298237510,-193.001573,0.00018821,2]
[364917352,1749298237520,-151.0,0.00018843,2]
[364917354,1749298237530,-151.0,0.00018843,2]
[364917356,1749298237540,-177.218348,0.00018843,2]
[364917358,1749298237550,-172.578436,0.00018843,2]
[364917360,1749298237560,-151.0,0.00018843,2]
[364917362,1749298237571,-172.578436,0.00018843,2]
[364917364,1749298237581,-224.860027,0.00018843,2]
[364917366,1749298237591,-151.0,0.00018843,2]
[364917368,1749298237601,-224.860027,0.00018843,2]
[364917370,1749298237610,-151.0,0.00018843,2]
[364917372,1749298237620,-151.0,0.00018843,2]
[364917374,1749298237630,-151.0,0.00018843,2]
[364917376,1749298237640,-151.0,0.00018843,2]
[364917378,1749298237650,-151.0,0.00018843,2]
[364917380,1749298237660,-193.001573,0.00018843,2]
[364917382,1749298237670,-193.001573,0.00018843,2]
[364917384,1749298237680,-151.0,0.00018871,2]
[364917386,1749298237690,-151.0,0.00018871,2]
[364917388,1749298237699,-126.50270218,0.00018871,2]
[364917391,1749298237712,-50.71564582,0.00018871,2]
[364917393,1749298237721,-177.218348,0.00018871,2]
[364917394,1749298237730,-172.578436,0.00018871,2]
[364917396,1749298237741,-289.180566,0.00018871,2]
[364917399,1749298237750,-172.578436,0.00018871,2]
[364917400,1749298237760,-79.58687481,0.00018871,2]
[364917403,1749298237771,-145.27315219,0.00018871,2]
[364917404,1749298237781,-151.0,0.00018871,2]
[364917406,1749298237790,-224.860027,0.00018871,2]
[364917407,1749298237800,-151.0,0.00018871,2]
[364917408,1749298237810,-151.0,0.00018871,2]
[364917409,1749298237820,-151.0,0.00018871,2]
[364917410,1749298237830,-151.0,0.00018871,2]
[364917411,1749298237840,-151.0,0.00018871,2]
[364917412,1749298237850,-193.001573,0.00018871,2]
[364917413,1749298237860,-2.66602788,0.00018871,2]
[364917414,1749298237873,-190.33554512,0.00018871,2]
[364917415,1749298237883,-151.0,0.000189,2]
[364917416,1749298237894,-151.0,0.000189,2]
[364917417,1749298237904,-177.218348,0.000189,2]
[364917418,1749298237914,-177.218348,0.000189,2]
[364917419,1749298237923,-172.578436,0.000189,2]
[364917420,1749298237933,-172.578436,0.000189,2]
[364917421,1749298237943,-224.860027,0.000189,2]
[364917422,1749298237961,-151.0,0.000189,2]
[364917423,1749298237971,-224.860027,0.000189,2]
[364917424,1749298237981,-151.0,0.000189,2]
[364917425,1749298237991,-133.05486056,0.000189,2]
[364917427,1749298239787,-17.94513944,0.000189,2]
[364917428,1749298239798,-262.95984,0.000189,2]
[364917429,1749298239810,-151.789566,0.000189,2]
[364917430,1749298239820,-193.001573,0.000189,2]
[364917431,1749298239831,-193.001573,0.000189,2]
[364917432,1749298239841,-301.94,0.00018923,2]
[364917433,1749298239851,-304.51,0.00018923,2]
[364917434,1749298239861,-303.61,0.00018923,2]
[364917435,1749298239872,-151.0,0.00018925,2]
[364917436,1749298239881,-177.218348,0.00018925,2]
[364917437,1749298239891,-177.218348,0.00018925,2]
[364917438,1749298239901,-172.578436,0.00018925,2]
[364917439,1749298239911,-172.578436,0.00018925,2]
[364917440,1749298239920,-224.860027,0.00018925,2]
[364917441,1749298239930,-151.0,0.00018925,2]
[364917442,1749298239940,-224.860027,0.00018925,2]
[364917443,1749298239951,-151.0,0.00018925,2]
[364917444,1749298239962,-151.0,0.00018925,2]
[364917445,1749298239973,-193.001573,0.00018925,2]
[364917446,1749298239983,-193.001573,0.00018925,2]
[364917447,1749298239993,-151.0,0.00018929,2]
[364917448,1749298240004,-151.0,0.00018929,2]
[364917449,1749298240014,-177.218348,0.00018929,2]
[364917450,1749298240024,-177.218348,0.00018929,2]
[364917451,1749298240035,-172.578436,0.00018929,2]
[364917452,1749298240045,-172.578436,0.00018929,2]
[364917453,1749298240055,-224.860027,0.00018929,2]
[364917454,1749298240065,-151.0,0.00018929,2]
[364917455,1749298240075,-224.860027,0.00018929,2]
[364917456,1749298240085,-151.0,0.00018929,2]
[364917457,1749298240095,-151.0,0.00018929,2]
[364917458,1749298240105,-193.001573,0.00018929,2]
[364917459,1749298240115,-193.001573,0.00018929,2]
[364917460,1749298240125,-500.0,0.0001898,2]
[364917461,1749298240134,-246.88,0.00018999,2]
[364917462,1749298240144,-538.29299961,0.00019,5]
[364917463,1749298240301,-51.40959029,0.00019,5]
[364917468,1749298241594,-6447.88898429,0.00019,5]
[364917469,1749298241626,-379.53869964,0.00019,5]
[364917470,1749298241638,-2993.49299812,0.00019,5]
[364917476,1749298242688,-451.36526189,0.00019,5]
[364917477,1749298242700,-305.01016309,0.00019,5]
[364917478,1749298242712,-828.43626309,0.00019,5]
[364917479,1749298242795,-4741.82374904,0.00019,5]
[364917480,1749298242855,-1299.0165544,0.00019,5]
[364917481,1749298242867,-15740.47155837,0.00019,5]
[364917482,1749298242877,-179.340194,0.00019,2]
[364917483,1749298242886,-179.340194,0.00019,2]
[364917484,1749298242896,-614.953737,0.00019,2]
[364917485,1749298242905,-614.953737,0.00019,2]
[364917486,1749298242915,-151.0,0.00019,2]
[364917487,1749298242925,-151.0,0.00019,2]
[364917488,1749298242935,-177.218348,0.00019,2]
[364917489,1749298242945,-177.218348,0.00019,2]
[364917490,1749298242957,-172.578436,0.00019,2]
[364917492,1749298242966,-172.578436,0.00019,2]
[364917494,1749298242975,-224.860027,0.00019,2]
[364917496,1749298242985,-151.0,0.00019,2]
[364917498,1749298242994,-224.860027,0.00019,2]
[364917500,1749298243003,-151.0,0.00019,2]
[364917502,1749298243014,-159.519686,0.00019,2]
[364917503,1749298243023,-193.001573,0.00019,2]
[364917504,1749298243033,-193.001573,0.00019,2]
[364917505,1749298243042,-200.0,0.00019,2]
[364917506,1749298243051,-200.0,0.00019,2]
[364917507,1749298243061,-1458.44,0.00019004,2]
[364917508,1749298243070,-300.12,0.00019007,2]
[364917509,1749298243079,-304.66,0.00019007,2]
[364917510,1749298243089,-500.0,0.00019007,2]
[364917511,1749298243098,-500.0,0.00019035,2]
[364917512,1749298243107,-614.953737,0.00019035,2]
[364917513,1749298243117,-614.953737,0.00019035,2]
[364917514,1749298243127,-177.218348,0.00019035,2]
[364917515,1749298243137,-151.0,0.00019035,2]
[364917516,1749298243146,-177.218348,0.00019035,2]
[364917517,1749298243156,-172.578436,0.00019035,2]
[364917519,1749298243165,-172.578436,0.00019035,2]
[364917521,1749298243175,-224.860027,0.00019035,2]
[364917523,1749298243184,-151.0,0.00019035,2]
[364917524,1749298243193,-224.860027,0.00019035,2]
[364917526,1749298243203,-151.0,0.00019035,2]
[364917528,1749298243213,-193.001573,0.00019035,2]
[364917530,1749298243223,-193.001573,0.00019035,2]
[364917532,1749298243232,-179.340194,0.00019036,2]
[364917534,1749298243241,-179.340194,0.00019036,2]
[364917536,1749298243251,-305.17,0.00019053,2]
[364917538,1749298243261,-408.46492253,0.00019062,2]
[364917540,1749298243272,-302.63,0.00019082,2]
[364917541,1749298243281,-302.82,0.00019082,2]
[364917542,1749298243292,-151.0,0.0001909,2]
[364917543,1749298243302,-179.340194,0.00019136,2]
[364917544,1749298243311,-179.340197,0.00019136,2]
[364917545,1749298243323,-614.953737,0.00019136,2]
[364917546,1749298243332,-614.953737,0.00019136,2]
[364917547,1749298243343,-177.218348,0.00019136,2]
[364917548,1749298243353,-151.0,0.00019136,2]
[364917549,1749298243363,-177.218343,0.00019136,2]
[364917550,1749298243373,-172.578436,0.00019136,2]
[364917551,1749298243383,-172.578441,0.00019136,2]
[364917552,1749298243393,-224.860027,0.00019136,2]
[364917553,1749298243404,-151.0,0.00019136,2]
[364917554,1749298243418,-224.860033,0.00019136,2]
[364917555,1749298243428,-151.0,0.00019136,2]
[364917556,1749298243438,-193.001573,0.00019136,2]
[364917557,1749298243448,-193.001566,0.00019136,2]
[364917558,1749298243458,-200.0,0.0001919,2]
[364917559,1749298243468,-200.0,0.0001919,2]
[364917560,1749298243478,-150.0,0.00019196,2]
[364917561,1749298243488,-166.66,0.00019227,2]
[364917562,1749298243498,-150.0,0.00019227,2]
[364917563,1749298243508,-150.0,0.0001928,2]
[364917564,1749298243517,-614.953737,0.00019309,2]
[364917565,1749298243526,-614.953737,0.00019309,2]
[364917566,1749298243537,-300.25,0.00019381,2]
[364917567,1749298243547,-303.03,0.00019381,2]
[364917568,1749298243556,-304.82,0.00019381,2]
[364917569,1749298243565,-300.96,0.00019381,2]
[364917570,1749298243575,-200.0,0.00019382,2]
[364917571,1749298243585,-200.0,0.00019382,2]
[364917572,1749298243595,-304.81,0.00019401,2]
[364917573,1749298243604,-304.8,0.00019401,2]
[364917574,1749298243614,-304.45,0.00019401,2]
[364917575,1749298243625,-303.96,0.00019401,2]
[364917576,1749298243635,-305.0,0.00019401,2]
[364917577,1749298243644,-300.69,0.00019401,2]
[364917578,1749298243654,-300.08,0.00019401,2]
[364917579,1749298243665,-304.14,0.00019417,2]
[364917580,1749298243674,-302.7,0.00019417,2]
[364917581,1749298243684,-300.27,0.00019417,2]
[364917582,1749298243693,-303.16,0.00019431,2]
[364917583,1749298243702,-304.2,0.00019431,2]
[364917584,1749298243711,-303.7,0.00019433,2]
[364917585,1749298243721,-302.09,0.00019433,2]
[364917586,1749298243731,-150.0,0.00019542,2]
[364917587,1749298243741,-200.0,0.00019576,2]
[364917588,1749298243750,-200.0,0.00019576,2]
[364917589,1749298243760,-500.0,0.00019578,2]
[364917590,1749298243770,-500.0,0.00019578,2]
[364917591,1749298243779,-647.59384853,0.00019578,2]
[364917592,1749298243789,-500.0,0.00019578,2]
[364917593,1749298243799,-150.0,0.00019608,2]
[364917594,1749298243808,-150.0,0.00019613,2]
[364917595,1749298243818,-547.0,0.00019636,2]
[364917596,1749298243828,-547.0,0.00019656,2]
[364917597,1749298243837,-547.0,0.00019668,2]
[364917598,1749298243847,-547.0,0.00019672,2]
[364917599,1749298243857,-547.0,0.00019673,2]
[364917600,1749298243867,-547.0,0.00019679,2]
[364917601,1749298243876,-547.0,0.00019685,2]
[364917602,1749298243887,-547.0,0.00019694,2]
[364917603,1749298243896,-547.0,0.00019698,2]
[364917604,1749298243906,-547.0,0.000197,2]
[364917605,1749298243915,-547.0,0.00019702,2]
[364917606,1749298243925,-500.0,0.00019708,2]
[364917607,1749298243934,-500.0,0.00019708,2]
[364917608,1749298243944,-500.0,0.00019708,2]
[364917609,1749298243956,-500.0,0.00019708,2]
[364917610,1749298243966,-150.0,0.00019716,2]
[364917611,1749298243976,-150.0,0.0001972,2]
[364917612,1749298243986,-150.0,0.0001972,2]
[364917613,1749298243996,-150.0,0.00019721,2]
[364917614,1749298244006,-150.0,0.00019725,2]
[364917615,1749298244015,-547.0,0.00019728,2]
[364917616,1749298244025,-150.0,0.00019729,2]
[364917617,1749298244036,-150.0,0.00019731,2]
[364917618,1749298244046,-150.0,0.00019733,2]
[364917619,1749298244056,-150.0,0.00019735,2]
[364917620,1749298244066,-150.0,0.00019743,2]
[364917621,1749298244076,-150.0,0.00019743,2]
[364917622,1749298244086,-150.0,0.00019747,2]
[364917623,1749298244095,-150.0,0.00019749,2]
[364917624,1749298244105,-150.0,0.00019751,2]
[364917625,1749298244119,-150.0,0.00019755,2]
[364917626,1749298244131,-150.0,0.00019759,2]
[364917627,1749298244145,-150.0,0.00019765,2]
[364917628,1749298244160,-547.0,0.00019765,2]
[364917629,1749298244173,-150.0,0.00019767,2]
[364917630,1749298244185,-200.0,0.00019771,2]
[364917631,1749298244196,-200.0,0.00019771,2]
[364917632,1749298244208,-150.0,0.00019772,2]
[364917633,1749298244220,-150.0,0.00019774,2]
[364917634,1749298244234,-150.0,0.00019775,2]
[364917635,1749298244247,-150.0,0.00019775,2]
[364917636,1749298244260,-150.0,0.0001979,2]
[364917637,1749298244273,-150.0,0.00019797,2]
[364917638,1749298244285,-150.0,0.00019799,2]
[364917639,1749298244298,-150.0,0.000198,2]
[364917640,1749298244311,-150.0,0.00019801,2]
[364917641,1749298244324,-150.0,0.00019802,2]
[364917642,1749298244337,-150.0,0.00019804,2]
[364917643,1749298244349,-150.0,0.00019804,2]
[364917644,1749298244360,-150.0,0.00019806,2]
[364917645,1749298244371,-150.0,0.00019808,2]
[364917646,1749298244383,-150.0,0.0001981,2]
[364917647,1749298244397,-150.0,0.0001981,2]
[364917648,1749298244409,-150.0,0.0001981,2]
[364917649,1749298244424,-547.0,0.00019817,2]
[364917650,1749298244437,-150.0,0.00019818,2]
[364917651,1749298244449,-150.0,0.00019821,2]
[364917652,1749298244463,-150.0,0.00019821,2]
[364917653,1749298244477,-150.0,0.00019822,2]
[364917654,1749298244489,-150.0,0.00019824,2]
[364917655,1749298244502,-547.0,0.00019829,2]
[364917656,1749298244515,-150.0,0.00019831,2]
[364917657,1749298244528,-150.0,0.00019831,2]
[364917658,1749298244540,-150.0,0.00019835,2]
[364917659,1749298244552,-150.0,0.00019846,2]
[364917660,1749298244566,-150.0,0.0001985,2]
[364917661,1749298244579,-547.0,0.00019851,2]
[364917662,1749298244593,-150.0,0.00019851,2]
[364917663,1749298244606,-150.0,0.00019854,2]
[364917664,1749298244618,-547.0,0.00019854,2]
[364917665,1749298244630,-150.0,0.00019856,2]
[364917666,1749298244643,-150.0,0.00019858,2]
[364917667,1749298244655,-218.42161716,0.00019858,2]
[364917668,1749298244666,-166.66,0.00019862,2]
[364917669,1749298244679,-150.0,0.00019863,2]
[364917670,1749298244693,-150.0,0.00019863,2]
[364917671,1749298244705,-300.0,0.00019869,2]
[364917672,1749298244720,-302.89,0.00019871,2]
[364917673,1749298244732,-547.0,0.00019873,2]
[364917674,1749298244744,-150.0,0.00019874,2]
[364917675,1749298244756,-150.0,0.00019876,2]
[364917676,1749298244768,-150.0,0.0001988,2]
[364917677,1749298244781,-150.0,0.00019888,2]
[364917678,1749298244792,-150.0,0.00019888,2]
[364917679,1749298244804,-150.0,0.0001989,2]
[364917680,1749298244815,-150.0,0.00019893,2]
[364917681,1749298244827,-150.0,0.00019894,2]
[364917682,1749298244838,-150.0,0.00019894,2]
[364917683,1749298244852,-547.0,0.00019894,2]
[364917684,1749298244867,-150.0,0.00019897,2]
[364917685,1749298244881,-150.0,0.00019903,2]
[364917686,1749298244892,-500.0,0.00019909,2]
[364917687,1749298244902,-258.80205317,0.00019909,2]
[364917688,1749298244913,-415.50663264,0.00019909,2]
[364917689,1749298244924,-547.0,0.00019909,2]
[364917690,1749298244936,-150.0,0.0001991,2]
[364917691,1749298244948,-150.0,0.00019913,2]
[364917692,1749298244962,-150.0,0.00019916,2]
[364917693,1749298244977,-150.0,0.00019916,2]
[364917694,1749298244990,-150.0,0.00019917,2]
[364917695,1749298245002,-150.0,0.00019917,2]
[364917696,1749298245015,-150.0,0.00019918,2]
[364917697,1749298245027,-150.0,0.00019925,2]
[364917698,1749298245039,-150.0,0.00019927,2]
[364917699,1749298245050,-150.0,0.00019932,2]
[364917700,1749298245061,-150.0,0.00019935,2]
[364917701,1749298245073,-150.0,0.00019937,2]
[364917702,1749298245085,-150.0,0.00019941,2]
[364917703,1749298245096,-547.0,0.00019946,2]
[364917704,1749298245108,-150.0,0.00019947,2]
[364917705,1749298245120,-150.0,0.00019947,2]
[364917706,1749298245130,-547.0,0.00019955,2]
[364917707,1749298245142,-150.0,0.00019957,2]
[364917708,1749298245153,-150.0,0.00019958,2]
[364917709,1749298245164,-150.0,0.00019963,2]
[364917710,1749298245176,-150.0,0.00019966,2]
[364917711,1749298245187,-150.0,0.00019968,2]
[364917712,1749298245198,-305.87,0.0001997,2]
[364917713,1749298245213,-150.0,0.0001997,2]
[364917714,1749298245224,-150.0,0.00019976,2]
[364917715,1749298245236,-150.0,0.00019979,2]
[364917716,1749298245247,-547.0,0.0001998,2]
[364917717,1749298245258,-150.0,0.00019981,2]
[364917718,1749298245269,-150.0,0.00019983,2]
[364917719,1749298245281,-150.0,0.00019984,2]
[364917720,1749298245293,-150.0,0.00019986,2]
[364917721,1749298245304,-150.0,0.00019986,2]
[364917722,1749298245315,-547.0,0.00019989,2]
[364917723,1749298245328,-150.0,0.0001999,2]
[364917724,1749298245339,-150.0,0.00019991,2]
[364917725,1749298245351,-547.0,0.00019995,2]
[364917726,1749298245362,-151.0,0.0002,2]
[364917727,1749298245374,-151.0,0.0002,2]
[364917728,1749298245385,-210.73,0.0002,2]
[364917729,1749298245396,-301.25,0.0002,2]
[364917730,1749298245408,-315.01987777,0.00020062,2]
[364917731,1749298245422,-1000.0,0.00020126,2]
[364917732,1749298245433,-1000.0,0.00020126,2]
[364917733,1749298245445,-1000.0,0.00020126,2]
[364917734,1749298245458,-250.0,0.0002017,2]
[364917735,1749298245470,-250.0,0.0002017,2]
[364917736,1749298245483,-300.0,0.0002017,2]
[364917737,1749298245495,-354.68,0.00020187,2]
[364917738,1749298245507,-500.0,0.0002021,2]
[364917739,1749298245519,-500.0,0.0002021,2]
[364917740,1749298245530,-500.0,0.0002021,2]
[364917742,1749298245542,-800.0,0.0002021,2]
[364917743,1749298245553,-500.0,0.0002021,2]
[364917744,1749298245564,-500.0,0.0002021,2]
[364917745,1749298245577,-500.0,0.0002021,2]
[364917746,1749298245588,-500.0,0.0002021,2]
[364917747,1749298245599,-500.0,0.0002021,2]
[364917748,1749298245611,-500.0,0.0002021,2]
[364917749,1749298245622,-500.0,0.0002021,2]
[364917750,1749298245634,-500.0,0.0002021,2]
[364917751,1749298245645,-500.0,0.0002021,2]
[364917752,1749298245656,-500.0,0.0002021,2]
[364917753,1749298245668,-500.0,0.0002021,2]
[364917754,1749298245679,-500.0,0.0002021,2]
[364917755,1749298245691,-500.0,0.0002021,2]
[364917756,1749298245703,-500.0,0.0002021,2]
[364917757,1749298245715,-500.0,0.0002021,2]
[364917758,1749298245727,-900.0,0.0002021,2]
[364917759,1749298245739,-289.25165423,0.0002022,2]
[364917760,1749298245751,-305.44,0.00020223,2]
[364917761,1749298245763,-1000.0,0.00020256,2]
[364917762,1749298245774,-1000.0,0.00020256,2]
[364917763,1749298245787,-510.12723358,0.00020256,2]
[364917764,1749298245799,-1000.0,0.00020256,2]
[364917765,1749298245810,-246.88,0.00020369,2]
[364917766,1749298245822,-151.0,0.00020403,5]
[364917767,1749298245834,-166.66,0.00020496,2]
[364917768,1749298245846,-420.0,0.00020504,2]
[364917769,1749298245858,-1680.0,0.00020534,2]
[364917770,1749298245870,-301.64,0.00020562,2]
[364917771,1749298245882,-151.0,0.00020653,2]
[364917772,1749298245894,-151.0,0.00020653,2]
[364917773,1749298245906,-1500.0,0.00020674,2]
[364917774,1749298245918,-803.56532587,0.00020674,2]
[364917775,1749298245929,-500.0,0.00020711,2]
[364917776,1749298245941,-500.0,0.00020711,2]
[364917777,1749298245953,-543.48922463,0.00020711,2]
[364917778,1749298245965,-500.0,0.00020711,2]
[364917779,1749298245976,-500.0,0.00020711,2]
[364917780,1749298245988,-500.0,0.00020711,2]
[364917781,1749298246001,-271.25709803,0.00020711,2]
[364917783,1749298246012,-500.0,0.00020711,2]
[364917785,1749298246023,-66.43501893,0.00020711,2]
[364917786,1749298247093,-433.56498107,0.00020711,2]
[364917787,1749298247103,-21.43501893,0.00020711,2]
[364917788,1749298247125,-300.0,0.00020125,2]
[364917789,1749298247135,-260.94306402,0.00020711,2]
[364917790,1749298247169,-217.62191705,0.00020711,2]
[364917791,1749298247178,-221.58401979,0.00020711,2]
[364917792,1749298247189,-278.41598021,0.00020711,2]
[364917793,1749298247199,-500.0,0.00020711,2]